[Event "*** Biggest EVER Titled Tuesday"]
[Site "Chess.com"]
[Date "2018.04.17"]
[Round "6"]
[White "BillieKimbah"]
[Black "Shtembuliak"]
[Result "0-1"]
[WhiteElo "2747"]
[BlackElo "2655"]
[TimeControl "180+2"]
[EndTime "14:23:35 PDT"]
[Termination "Shtembuliak won on time"]

1. e4 {[%clk 0:03:01.9]} 1... e6 {[%clk 0:02:59.7]} 2. d4 {[%clk 0:03:02.6]}
2... d5 {[%clk 0:03:00.7]} 3. e5 {[%clk 0:03:04.2]} 3... c5 {[%clk 0:03:00.5]}
4. c3 {[%clk 0:03:05.6]} 4... Nc6 {[%clk 0:02:58.6]} 5. Nf3 {[%clk 0:03:06.6]}
5... Bd7 {[%clk 0:02:59.3]} 6. Be2 {[%clk 0:03:06.8]} 6... Nge7 {[%clk
0:02:56.6]} 7. O-O {[%clk 0:03:07.4]} 7... cxd4 {[%clk 0:02:48.3]} 8. cxd4
{[%clk 0:03:08.2]} 8... Ng6 {[%clk 0:02:49.7]} 9. g3 {[%clk 0:03:06.8]} 9... Be7
{[%clk 0:02:50.6]} 10. h4 {[%clk 0:03:07.7]} 10... O-O {[%clk 0:02:52.1]} 11.
Nc3 {[%clk 0:03:03]} 11... f6 {[%clk 0:02:50.8]} 12. h5 {[%clk 0:03:01.9]} 12...
Nh8 {[%clk 0:02:42.8]} 13. h6 {[%clk 0:03:02.9]} 13... g6 {[%clk 0:02:27.2]} 14.
exf6 {[%clk 0:02:58]} 14... Bxf6 {[%clk 0:02:27.8]} 15. Be3 {[%clk 0:02:54.9]}
15... Nf7 {[%clk 0:02:28.2]} 16. Nh2 {[%clk 0:02:54.6]} 16... Bg5 {[%clk
0:02:20.1]} 17. Qd2 {[%clk 0:02:46.3]} 17... Bxe3 {[%clk 0:02:19.5]} 18. Qxe3
{[%clk 0:02:48.2]} 18... Qg5 {[%clk 0:02:19.2]} 19. f4 {[%clk 0:02:47.6]} 19...
Qxh6 {[%clk 0:02:18.4]} 20. Bd3 {[%clk 0:02:42.9]} 20... Nd6 {[%clk 0:02:14.7]}
21. Ng4 {[%clk 0:02:40.7]} 21... Qg7 {[%clk 0:02:14.7]} 22. Ne5 {[%clk
0:02:32.4]} 22... Nxe5 {[%clk 0:02:13.9]} 23. dxe5 {[%clk 0:02:34.3]} 23... Nf5
{[%clk 0:02:14.3]} 24. Bxf5 {[%clk 0:02:34.5]} 24... Rxf5 {[%clk 0:02:02.3]} 25.
Ne2 {[%clk 0:02:05.6]} 25... Bb5 {[%clk 0:01:55.1]} 26. Nd4 {[%clk 0:02:06.5]}
26... Bxf1 {[%clk 0:01:55.6]} 27. Rxf1 {[%clk 0:02:08.4]} 27... Qe7 {[%clk
0:01:47.6]} 28. Nxf5 {[%clk 0:02:06.9]} 28... gxf5 {[%clk 0:01:48.2]} 29. Rc1
{[%clk 0:02:08.5]} 29... Kh8 {[%clk 0:01:43.5]} 30. Rc2 {[%clk 0:02:07.4]} 30...
Rg8 {[%clk 0:01:42.8]} 31. Kh2 {[%clk 0:02:05.5]} 31... Qg7 {[%clk 0:01:40.4]}
32. Rc3 {[%clk 0:02:00.9]} 32... h5 {[%clk 0:01:28.9]} 33. Qe2 {[%clk
0:01:57.2]} 33... Qg6 {[%clk 0:01:25.4]} 34. Qg2 {[%clk 0:01:46.1]} 34... Qg4
{[%clk 0:01:18.2]} 35. Qf2 {[%clk 0:01:16.2]} 35... a6 {[%clk 0:01:08.7]} 36.
Rc7 {[%clk 0:01:16.4]} 36... h4 {[%clk 0:00:44.9]} 37. gxh4 {[%clk 0:01:16.4]}
37... Qd1 {[%clk 0:00:39.6]} 38. Rxb7 {[%clk 0:01:13.1]} 38... d4 {[%clk
0:00:36.7]} 39. Rc7 {[%clk 0:00:17.2]} 39... d3 {[%clk 0:00:37.2]} 40. Rc6
{[%clk 0:00:18.1]} 40... Rd8 {[%clk 0:00:11.8]} 41. Rxe6 {[%clk 0:00:17.4]}
41... Qe2 {[%clk 0:00:11.2]} 0-1

[Event "*** Biggest EVER Titled Tuesday"]
[Site "Chess.com"]
[Date "2018.04.17"]
[Round "6"]
[White "jlandaw"]
[Black "Gajuchess"]
[Result "1-0"]
[WhiteElo "2469"]
[BlackElo "2582"]
[TimeControl "180+2"]
[EndTime "14:23:37 PDT"]
[Termination "jlandaw won by checkmate"]

1. e4 {[%clk 0:03:01.9]} 1... c5 {[%clk 0:03:00.4]} 2. Nc3 {[%clk 0:03:02.8]}
2... e6 {[%clk 0:02:58.9]} 3. g3 {[%clk 0:03:02.4]} 3... Nc6 {[%clk 0:03:00]} 4.
Bg2 {[%clk 0:03:03.2]} 4... Nf6 {[%clk 0:02:58.8]} 5. Nge2 {[%clk 0:03:03.8]}
5... Be7 {[%clk 0:02:58.6]} 6. O-O {[%clk 0:03:04.4]} 6... d6 {[%clk 0:02:59.4]}
7. d3 {[%clk 0:02:59.7]} 7... O-O {[%clk 0:02:59.9]} 8. f4 {[%clk 0:02:59.3]}
8... Rb8 {[%clk 0:02:56.3]} 9. a3 {[%clk 0:02:55.8]} 9... Qc7 {[%clk 0:02:51.8]}
10. h3 {[%clk 0:02:53.2]} 10... b5 {[%clk 0:02:52.4]} 11. Rb1 {[%clk 0:02:52]}
11... b4 {[%clk 0:02:51.9]} 12. axb4 {[%clk 0:02:49.4]} 12... cxb4 {[%clk
0:02:53.8]} 13. Na4 {[%clk 0:02:50.8]} 13... Ba6 {[%clk 0:02:45.4]} 14. Be3
{[%clk 0:02:47.6]} 14... Nd7 {[%clk 0:02:43.4]} 15. g4 {[%clk 0:02:37.7]} 15...
Nc5 {[%clk 0:02:43.4]} 16. Nxc5 {[%clk 0:02:13.5]} 16... dxc5 {[%clk 0:02:45.3]}
17. f5 {[%clk 0:02:15.1]} 17... c4 {[%clk 0:02:34.9]} 18. d4 {[%clk 0:02:01.1]}
18... c3 {[%clk 0:02:31.4]} 19. e5 {[%clk 0:01:54.4]} 19... Rfd8 {[%clk
0:02:21.8]} 20. f6 {[%clk 0:01:44.1]} 20... Bf8 {[%clk 0:02:21.6]} 21. Bxc6
{[%clk 0:01:14.4]} 21... Qxc6 {[%clk 0:02:21.5]} 22. Rf2 {[%clk 0:01:15.9]}
22... Qe4 {[%clk 0:01:56]} 23. Qc1 {[%clk 0:01:07.8]} 23... Bb7 {[%clk
0:00:54.3]} 24. Ng3 {[%clk 0:01:08.5]} 24... Qc6 {[%clk 0:00:53.6]} 25. bxc3
{[%clk 0:01:01.2]} 25... bxc3 {[%clk 0:00:53.8]} 26. Rb3 {[%clk 0:01:02.3]}
26... Ba8 {[%clk 0:00:54.2]} 27. Qb1 {[%clk 0:00:55.8]} 27... Rxb3 {[%clk
0:00:55]} 28. Qxb3 {[%clk 0:00:57.7]} 28... a5 {[%clk 0:00:55.1]} 29. fxg7
{[%clk 0:00:55.4]} 29... Bxg7 {[%clk 0:00:56.2]} 30. Qa3 {[%clk 0:00:51.7]}
30... Rb8 {[%clk 0:00:50.9]} 31. Qe7 {[%clk 0:00:32.2]} 31... Rb1+ {[%clk
0:00:47.2]} 32. Kh2 {[%clk 0:00:33.6]} 32... Rb8 {[%clk 0:00:20.3]} 33. Qxf7+
{[%clk 0:00:33.8]} 33... Kh8 {[%clk 0:00:21.5]} 34. Nh5 {[%clk 0:00:32.2]} 34...
Rg8 {[%clk 0:00:20.8]} 35. Nf6 {[%clk 0:00:06.7]} 35... Rf8 {[%clk 0:00:20.3]}
36. Qh5 {[%clk 0:00:03.9]} 36... Qh1+ {[%clk 0:00:16.8]} 37. Kg3 {[%clk
0:00:04.9]} 37... Bxf6 {[%clk 0:00:13.3]} 38. exf6 {[%clk 0:00:05.9]} 38... Qg1+
{[%clk 0:00:13.5]} 39. Kh4 {[%clk 0:00:06.9]} 39... Qe1 {[%clk 0:00:10.5]} 40.
Qe5 {[%clk 0:00:06.8]} 40... h6 {[%clk 0:00:05.1]} 41. f7+ {[%clk 0:00:04.5]}
41... Kh7 {[%clk 0:00:06.4]} 42. Qxe6 {[%clk 0:00:05.8]} 42... Bf3 {[%clk
0:00:05]} 43. Qxh6# {[%clk 0:00:06.1]} 1-0

[Event "*** Biggest EVER Titled Tuesday"]
[Site "Chess.com"]
[Date "2018.04.17"]
[Round "6"]
[White "ahmadzada13"]
[Black "guillembaches"]
[Result "1/2-1/2"]
[WhiteElo "2556"]
[BlackElo "2249"]
[TimeControl "180+2"]
[EndTime "14:23:44 PDT"]
[Termination "Game drawn by repetition"]

1. e4 {[%clk 0:03:01.9]} 1... c5 {[%clk 0:02:58.2]} 2. Nf3 {[%clk 0:03:02.8]}
2... d6 {[%clk 0:02:57.4]} 3. Bb5+ {[%clk 0:03:03]} 3... Nd7 {[%clk 0:02:57.4]}
4. c3 {[%clk 0:03:03.1]} 4... Nf6 {[%clk 0:02:56.8]} 5. Qe2 {[%clk 0:03:02.2]}
5... a6 {[%clk 0:02:57]} 6. Ba4 {[%clk 0:03:03]} 6... b5 {[%clk 0:02:57.6]} 7.
Bc2 {[%clk 0:03:03.9]} 7... Bb7 {[%clk 0:02:56]} 8. O-O {[%clk 0:03:05]} 8... e6
{[%clk 0:02:47.6]} 9. d4 {[%clk 0:03:05.5]} 9... Be7 {[%clk 0:02:41.8]} 10. a4
{[%clk 0:03:04.8]} 10... O-O {[%clk 0:02:33.3]} 11. Rd1 {[%clk 0:02:53.6]} 11...
Qc7 {[%clk 0:02:20.4]} 12. Bg5 {[%clk 0:02:10.3]} 12... bxa4 {[%clk 0:01:45.6]}
13. Rxa4 {[%clk 0:02:01.9]} 13... h6 {[%clk 0:01:37.2]} 14. Bxf6 {[%clk
0:01:45]} 14... Bxf6 {[%clk 0:01:25.8]} 15. Bd3 {[%clk 0:01:46.2]} 15... Qc6
{[%clk 0:01:02.9]} 16. Ra1 {[%clk 0:01:42.6]} 16... Rfe8 {[%clk 0:00:57.6]} 17.
Na3 {[%clk 0:01:37.4]} 17... d5 {[%clk 0:00:50]} 18. e5 {[%clk 0:01:34.3]} 18...
Be7 {[%clk 0:00:50.2]} 19. Bc2 {[%clk 0:01:27.3]} 19... Nf8 {[%clk 0:00:49.5]}
20. Nb1 {[%clk 0:01:23.6]} 20... Reb8 {[%clk 0:00:43.8]} 21. Nbd2 {[%clk
0:01:23]} 21... a5 {[%clk 0:00:43.7]} 22. Bd3 {[%clk 0:01:15.3]} 22... Qb6
{[%clk 0:00:40.5]} 23. Nf1 {[%clk 0:01:08.8]} 23... Bc6 {[%clk 0:00:38.9]} 24.
Ra2 {[%clk 0:01:05.4]} 24... a4 {[%clk 0:00:37.1]} 25. Rda1 {[%clk 0:01:03]}
25... c4 {[%clk 0:00:32.5]} 26. Bc2 {[%clk 0:01:02.7]} 26... Ra5 {[%clk
0:00:29.8]} 27. Ne3 {[%clk 0:00:41.2]} 27... Rba8 {[%clk 0:00:25.9]} 28. Ng4
{[%clk 0:00:41.9]} 28... a3 {[%clk 0:00:26.6]} 29. bxa3 {[%clk 0:00:42.7]} 29...
Rxa3 {[%clk 0:00:26.9]} 30. Rxa3 {[%clk 0:00:43.3]} 30... Rxa3 {[%clk
0:00:28.8]} 31. Rxa3 {[%clk 0:00:37.3]} 31... Bxa3 {[%clk 0:00:29]} 32. Qd2
{[%clk 0:00:24.1]} 32... Qb2 {[%clk 0:00:26.8]} 33. h4 {[%clk 0:00:20.4]} 33...
Qc1+ {[%clk 0:00:27]} 34. Kh2 {[%clk 0:00:17.8]} 34... Qxd2 {[%clk 0:00:27.6]}
35. Nxd2 {[%clk 0:00:19.3]} 35... Bb2 {[%clk 0:00:28.4]} 36. Nb1 {[%clk
0:00:20.6]} 36... Nd7 {[%clk 0:00:26.9]} 37. Ne3 {[%clk 0:00:20.7]} 37... Nb6
{[%clk 0:00:26.3]} 38. Nd1 {[%clk 0:00:21.7]} 38... Bc1 {[%clk 0:00:27.1]} 39.
g3 {[%clk 0:00:22.8]} 39... Ba4 {[%clk 0:00:27.4]} 40. Bxa4 {[%clk 0:00:22.6]}
40... Nxa4 {[%clk 0:00:29.3]} 41. f4 {[%clk 0:00:23.6]} 41... g5 {[%clk
0:00:29.2]} 42. hxg5 {[%clk 0:00:17.7]} 42... hxg5 {[%clk 0:00:31.1]} 43. fxg5
{[%clk 0:00:19.3]} 43... Bxg5 {[%clk 0:00:31.3]} 44. Kg2 {[%clk 0:00:21]} 44...
Bc1 {[%clk 0:00:31.6]} 45. Kf3 {[%clk 0:00:22]} 45... Kg7 {[%clk 0:00:32.7]} 46.
Nf2 {[%clk 0:00:20.6]} 46... Bb2 {[%clk 0:00:31.4]} 47. Nd1 {[%clk 0:00:21.3]}
47... Bc1 {[%clk 0:00:32.4]} 48. Nf2 {[%clk 0:00:22]} 48... Kg6 {[%clk
0:00:33.3]} 49. Nd1 {[%clk 0:00:22.2]} 49... f6 {[%clk 0:00:33.6]} 50. exf6
{[%clk 0:00:22.6]} 50... Kxf6 {[%clk 0:00:35.5]} 51. Nf2 {[%clk 0:00:24.2]}
51... Bb2 {[%clk 0:00:33.7]} 52. Nd1 {[%clk 0:00:25.4]} 52... Bc1 {[%clk
0:00:33.1]} 53. Nf2 {[%clk 0:00:26.8]} 53... Bb2 {[%clk 0:00:34.2]} 54. Nd1
{[%clk 0:00:28]} 54... Bc1 {[%clk 0:00:35.5]} 55. Nf2 {[%clk 0:00:28.5]} 1/2-1/2

[Event "*** Biggest EVER Titled Tuesday"]
[Site "Chess.com"]
[Date "2018.04.17"]
[Round "6"]
[White "peteseeger"]
[Black "Karina_Oparina"]
[Result "1-0"]
[WhiteElo "2098"]
[BlackElo "2145"]
[TimeControl "180+2"]
[EndTime "14:23:45 PDT"]
[Termination "peteseeger won by resignation"]

1. e4 {[%clk 0:03:01.9]} 1... c6 {[%clk 0:03:00.8]} 2. d4 {[%clk 0:02:59.8]}
2... d5 {[%clk 0:03:01.7]} 3. e5 {[%clk 0:03:00.5]} 3... Bf5 {[%clk 0:03:02.1]}
4. h4 {[%clk 0:03:00.6]} 4... h5 {[%clk 0:02:58.1]} 5. Bd3 {[%clk 0:03:01]} 5...
Bxd3 {[%clk 0:02:58.3]} 6. Qxd3 {[%clk 0:03:02.9]} 6... e6 {[%clk 0:02:59]} 7.
Bg5 {[%clk 0:03:02]} 7... Ne7 {[%clk 0:02:52.6]} 8. Nc3 {[%clk 0:02:56.7]} 8...
Nd7 {[%clk 0:02:50.1]} 9. Nf3 {[%clk 0:02:56.5]} 9... Qb6 {[%clk 0:02:47.3]} 10.
O-O {[%clk 0:02:51.1]} 10... Nf5 {[%clk 0:02:45.5]} 11. Ne2 {[%clk 0:02:51.5]}
11... g6 {[%clk 0:02:15.7]} 12. Ng3 {[%clk 0:02:49.9]} 12... Nxg3 {[%clk
0:01:55.8]} 13. fxg3 {[%clk 0:02:49.6]} 13... Bg7 {[%clk 0:01:57]} 14. Kh2
{[%clk 0:02:41]} 14... O-O {[%clk 0:01:56.4]} 15. Be7 {[%clk 0:02:31.2]} 15...
Rfe8 {[%clk 0:01:56.3]} 16. Bd6 {[%clk 0:02:32.1]} 16... Bf8 {[%clk 0:01:46.3]}
17. Ng5 {[%clk 0:02:20.7]} 17... Bxd6 {[%clk 0:01:46.8]} 18. exd6 {[%clk
0:02:21.6]} 18... f5 {[%clk 0:01:41.4]} 19. Rae1 {[%clk 0:02:18.2]} 19... e5
{[%clk 0:01:34.1]} 20. Rxf5 {[%clk 0:01:40.8]} 20... Qxd4 {[%clk 0:01:23.4]} 21.
Qf1 {[%clk 0:01:08.6]} 21... Rf8 {[%clk 0:01:16.4]} 22. Rf7 {[%clk 0:00:56.5]}
22... e4 {[%clk 0:01:01.6]} 23. Qf4 {[%clk 0:00:49.2]} 23... Qe5 {[%clk
0:00:48.3]} 24. Rf1 {[%clk 0:00:39.9]} 24... Qxf4 {[%clk 0:00:45.8]} 25. R1xf4
{[%clk 0:00:34.1]} 25... Ne5 {[%clk 0:00:45.7]} 26. Rxf8+ {[%clk 0:00:25.5]}
26... Rxf8 {[%clk 0:00:46]} 27. Ne6 {[%clk 0:00:26.3]} 27... Rxf4 {[%clk
0:00:35.2]} 28. gxf4 {[%clk 0:00:27.1]} 28... Nd7 {[%clk 0:00:34.5]} 29. Kg3
{[%clk 0:00:16.5]} 29... b6 {[%clk 0:00:31]} 30. Kf2 {[%clk 0:00:13.9]} 30... c5
{[%clk 0:00:29.3]} 31. Ke3 {[%clk 0:00:13.9]} 31... Kf7 {[%clk 0:00:27.8]} 32.
Ng5+ {[%clk 0:00:14.7]} 32... Kf6 {[%clk 0:00:23.4]} 33. c4 {[%clk 0:00:16.1]}
33... dxc4 {[%clk 0:00:17.7]} 34. Kxe4 {[%clk 0:00:16.3]} 34... b5 {[%clk
0:00:14.9]} 35. Kd5 {[%clk 0:00:16.9]} 35... b4 {[%clk 0:00:07.3]} 36. Kxc4
{[%clk 0:00:14.4]} 36... Kf5 {[%clk 0:00:08.1]} 37. Kd5 {[%clk 0:00:13.1]} 37...
Kxf4 {[%clk 0:00:09]} 38. Kc6 {[%clk 0:00:14]} 38... Ne5+ {[%clk 0:00:09.5]} 39.
Kxc5 {[%clk 0:00:14.3]} 39... Kg4 {[%clk 0:00:08.2]} 40. Kd5 {[%clk 0:00:13.5]}
40... Nd7 {[%clk 0:00:07.9]} 41. Nf3 {[%clk 0:00:11.2]} 41... Kg3 {[%clk
0:00:07.6]} 42. Kc6 {[%clk 0:00:11.9]} 42... Nf8 {[%clk 0:00:07.4]} 43. d7
{[%clk 0:00:10.2]} 43... Nxd7 {[%clk 0:00:08]} 44. Kxd7 {[%clk 0:00:12.1]} 44...
Kxg2 {[%clk 0:00:08.9]} 45. Ne5 {[%clk 0:00:13.1]} 45... g5 {[%clk 0:00:08.3]}
46. hxg5 {[%clk 0:00:13.4]} 46... h4 {[%clk 0:00:09.8]} 47. g6 {[%clk
0:00:14.8]} 47... h3 {[%clk 0:00:11.2]} 48. g7 {[%clk 0:00:16.7]} 48... h2
{[%clk 0:00:12.6]} 49. g8=Q+ {[%clk 0:00:17.8]} 1-0

[Event "*** Biggest EVER Titled Tuesday"]
[Site "Chess.com"]
[Date "2018.04.17"]
[Round "6"]
[White "TigranLPetrosyan"]
[Black "PchelkinVK"]
[Result "1-0"]
[WhiteElo "2648"]
[BlackElo "2426"]
[TimeControl "180+2"]
[EndTime "14:23:47 PDT"]
[Termination "TigranLPetrosyan won by checkmate"]

1. d4 {[%clk 0:03:01.9]} 1... e5 {[%clk 0:02:53.5]} 2. Nf3 {[%clk 0:03:03.5]}
2... e4 {[%clk 0:02:53.9]} 3. Nfd2 {[%clk 0:03:04.3]} 3... d5 {[%clk 0:02:54.9]}
4. c4 {[%clk 0:03:04.7]} 4... c6 {[%clk 0:02:56.3]} 5. Nc3 {[%clk 0:03:05.2]}
5... Nf6 {[%clk 0:02:57.8]} 6. cxd5 {[%clk 0:03:04.4]} 6... cxd5 {[%clk
0:02:58.6]} 7. Nb3 {[%clk 0:03:05.8]} 7... Nc6 {[%clk 0:02:39.2]} 8. Bg5 {[%clk
0:03:05.2]} 8... Be6 {[%clk 0:02:39.7]} 9. e3 {[%clk 0:03:02.4]} 9... Be7 {[%clk
0:02:40.4]} 10. Be2 {[%clk 0:03:02.5]} 10... Nd7 {[%clk 0:02:35.5]} 11. Bf4
{[%clk 0:03:01.9]} 11... O-O {[%clk 0:02:31]} 12. O-O {[%clk 0:02:56.1]} 12...
Rc8 {[%clk 0:02:30.9]} 13. Rc1 {[%clk 0:02:51.9]} 13... Na5 {[%clk 0:02:07.1]}
14. Nxd5 {[%clk 0:02:37.9]} 14... Rxc1 {[%clk 0:01:24.1]} 15. Nxe7+ {[%clk
0:02:34.7]} 15... Qxe7 {[%clk 0:01:24.8]} 16. Nxc1 {[%clk 0:02:35.3]} 16... Qb4
{[%clk 0:01:17.9]} 17. d5 {[%clk 0:02:27.8]} 17... Bf5 {[%clk 0:01:12.6]} 18.
Qc2 {[%clk 0:02:16.9]} 18... Nb6 {[%clk 0:01:04.5]} 19. a3 {[%clk 0:02:17.9]}
19... Qe7 {[%clk 0:00:51.7]} 20. Rd1 {[%clk 0:02:15.9]} 20... Rc8 {[%clk
0:00:51.6]} 21. Qd2 {[%clk 0:02:09.4]} 21... Nac4 {[%clk 0:00:49.5]} 22. Qd4
{[%clk 0:02:10.4]} 22... Nd6 {[%clk 0:00:39]} 23. a4 {[%clk 0:02:10.3]} 23...
Bd7 {[%clk 0:00:26.9]} 24. Qb4 {[%clk 0:02:05.7]} 24... Nf5 {[%clk 0:00:22.5]}
25. d6 {[%clk 0:02:05.5]} 25... Qe6 {[%clk 0:00:11.8]} 26. a5 {[%clk 0:01:45.2]}
26... Nd5 {[%clk 0:00:08.8]} 27. Qxb7 {[%clk 0:01:46.6]} 27... Nxf4 {[%clk
0:00:08.7]} 28. exf4 {[%clk 0:01:48.5]} 28... e3 {[%clk 0:00:10]} 29. Qxa7
{[%clk 0:01:45.7]} 29... h6 {[%clk 0:00:08.8]} 30. h3 {[%clk 0:01:28.2]} 30...
Rc2 {[%clk 0:00:09.4]} 31. b4 {[%clk 0:01:23.7]} 31... exf2+ {[%clk 0:00:08.8]}
32. Qxf2 {[%clk 0:01:23.7]} 32... Ne3 {[%clk 0:00:10]} 33. Re1 {[%clk
0:01:20.4]} 33... Bc6 {[%clk 0:00:11.1]} 34. f5 {[%clk 0:01:10.2]} 34... Qe5
{[%clk 0:00:10.7]} 35. Nd3 {[%clk 0:01:11.5]} 35... Qd4 {[%clk 0:00:10.5]} 36.
Nf4 {[%clk 0:01:10.6]} 36... Nxf5 {[%clk 0:00:08.8]} 37. Qxd4 {[%clk 0:01:08.4]}
37... Nxd4 {[%clk 0:00:10.7]} 38. Bd3 {[%clk 0:01:09.6]} 38... Rd2 {[%clk
0:00:11.1]} 39. Be4 {[%clk 0:00:51]} 39... g5 {[%clk 0:00:12.2]} 40. Bxc6 {[%clk
0:00:50.5]} 40... Nxc6 {[%clk 0:00:14.1]} 41. Nh5 {[%clk 0:00:41.1]} 41... Nxb4
{[%clk 0:00:15]} 42. d7 {[%clk 0:00:40.7]} 42... Kh7 {[%clk 0:00:14.1]} 43. Re8
{[%clk 0:00:40.6]} 43... Nc6 {[%clk 0:00:14.7]} 44. Rc8 {[%clk 0:00:41.6]} 44...
Kg6 {[%clk 0:00:15.1]} 45. g4 {[%clk 0:00:40.5]} 45... Nd4 {[%clk 0:00:10.5]}
46. Rg8+ {[%clk 0:00:37.6]} 46... Kh7 {[%clk 0:00:09.1]} 47. Nf6# {[%clk
0:00:38.5]} 1-0

[Event "*** Biggest EVER Titled Tuesday"]
[Site "Chess.com"]
[Date "2018.04.17"]
[Round "6"]
[White "rasmussvane"]
[Black "gkchesstiger"]
[Result "1-0"]
[WhiteElo "2647"]
[BlackElo "2766"]
[TimeControl "180+2"]
[EndTime "14:23:49 PDT"]
[Termination "rasmussvane won by resignation"]

1. d4 {[%clk 0:03:01.9]} 1... Nf6 {[%clk 0:02:58.4]} 2. Nf3 {[%clk 0:03:00.6]}
2... e6 {[%clk 0:02:59.5]} 3. c4 {[%clk 0:03:01.3]} 3... b6 {[%clk 0:03:00.3]}
4. g3 {[%clk 0:03:01.8]} 4... a5 {[%clk 0:03:01.5]} 5. Bg2 {[%clk 0:03:01.9]}
5... Ba6 {[%clk 0:03:02.5]} 6. Qc2 {[%clk 0:03:02.2]} 6... c6 {[%clk 0:03:03.6]}
7. O-O {[%clk 0:03:01.5]} 7... d5 {[%clk 0:03:04.7]} 8. b3 {[%clk 0:03:01.9]}
8... Nbd7 {[%clk 0:03:02.3]} 9. Bb2 {[%clk 0:02:59.7]} 9... Be7 {[%clk
0:03:03.3]} 10. Nbd2 {[%clk 0:02:57.3]} 10... O-O {[%clk 0:03:04.2]} 11. e4
{[%clk 0:02:58.1]} 11... Rc8 {[%clk 0:03:04.9]} 12. Rfe1 {[%clk 0:02:54.6]}
12... h6 {[%clk 0:03:01.2]} 13. e5 {[%clk 0:02:43.1]} 13... Ne8 {[%clk
0:03:00.2]} 14. Rac1 {[%clk 0:02:44.4]} 14... Nc7 {[%clk 0:02:59.7]} 15. Bf1
{[%clk 0:02:35.6]} 15... b5 {[%clk 0:02:36.9]} 16. c5 {[%clk 0:02:34.7]} 16...
b4 {[%clk 0:02:37.7]} 17. Bg2 {[%clk 0:02:28.6]} 17... Nb5 {[%clk 0:02:36.4]}
18. h4 {[%clk 0:02:28.9]} 18... Qc7 {[%clk 0:02:33.2]} 19. Nf1 {[%clk
0:02:24.9]} 19... Rce8 {[%clk 0:02:31.4]} 20. Bh3 {[%clk 0:02:20.9]} 20... Bd8
{[%clk 0:02:27.1]} 21. Qd2 {[%clk 0:02:20]} 21... Qb8 {[%clk 0:02:25.4]} 22. Ne3
{[%clk 0:02:18.7]} 22... Nc7 {[%clk 0:02:22.8]} 23. Ng4 {[%clk 0:02:17.9]} 23...
f5 {[%clk 0:02:15.6]} 24. exf6 {[%clk 0:02:09.3]} 24... Nxf6 {[%clk 0:02:16.5]}
25. Nxf6+ {[%clk 0:02:09.9]} 25... Bxf6 {[%clk 0:02:16.2]} 26. Ne5 {[%clk
0:02:09.1]} 26... Qb5 {[%clk 0:02:05.8]} 27. Nd7 {[%clk 0:01:59.3]} 27... Rf7
{[%clk 0:02:05.7]} 28. Nxf6+ {[%clk 0:01:59.3]} 28... gxf6 {[%clk 0:02:04.5]}
29. Qxh6 {[%clk 0:01:58.2]} 29... Qd3 {[%clk 0:02:05.4]} 30. Bf1 {[%clk
0:01:57.2]} 30... Qf5 {[%clk 0:02:04.1]} 31. Bg2 {[%clk 0:01:44.7]} 31... Rh7
{[%clk 0:01:46.9]} 32. Qe3 {[%clk 0:01:43.6]} 32... Rhe7 {[%clk 0:01:27.9]} 33.
Kh2 {[%clk 0:01:34.2]} 33... e5 {[%clk 0:01:18.7]} 34. Bh3 {[%clk 0:01:27]}
34... Qg6 {[%clk 0:01:10.9]} 35. Qf3 {[%clk 0:01:27.5]} 35... e4 {[%clk
0:00:44.5]} 36. Qg4 {[%clk 0:01:26.8]} 36... Kf7 {[%clk 0:00:41.1]} 37. Qf4
{[%clk 0:00:58.2]} 37... Ne6 {[%clk 0:00:40.3]} 38. Qd6 {[%clk 0:00:58.3]} 38...
Bb5 {[%clk 0:00:39.8]} 39. Rcd1 {[%clk 0:00:53.3]} 39... f5 {[%clk 0:00:40.7]}
40. Bc1 {[%clk 0:00:52.4]} 40... Qf6 {[%clk 0:00:37.1]} 41. Bf4 {[%clk
0:00:50.5]} 41... Rd8 {[%clk 0:00:35.4]} 42. Qe5 {[%clk 0:00:51.4]} 42... Qxe5
{[%clk 0:00:36.6]} 43. Bxe5 {[%clk 0:00:51.8]} 43... Nxc5 {[%clk 0:00:37.7]} 44.
dxc5 {[%clk 0:00:38.9]} 44... Rxe5 {[%clk 0:00:38.2]} 45. f4 {[%clk 0:00:40.3]}
45... Re7 {[%clk 0:00:39.2]} 46. Bxf5 {[%clk 0:00:41.5]} 46... e3 {[%clk
0:00:36.8]} 47. Rd4 {[%clk 0:00:40.3]} 47... e2 {[%clk 0:00:37.8]} 48. Kg2
{[%clk 0:00:39.8]} 48... Re3 {[%clk 0:00:38.6]} 49. Kf2 {[%clk 0:00:40.8]} 49...
Rde8 {[%clk 0:00:39.9]} 50. h5 {[%clk 0:00:38]} 50... Kf6 {[%clk 0:00:39]} 51.
Bg6 {[%clk 0:00:38.9]} 51... Rc3 {[%clk 0:00:39.5]} 52. Bxe8 {[%clk 0:00:38.7]}
52... Rxc5 {[%clk 0:00:39.2]} 53. g4 {[%clk 0:00:35.8]} 53... Rc3 {[%clk
0:00:39.8]} 54. g5+ {[%clk 0:00:36.7]} 54... Ke7 {[%clk 0:00:40.8]} 55. Bg6
{[%clk 0:00:36.4]} 55... Rh3 {[%clk 0:00:41.6]} 56. h6 {[%clk 0:00:33.3]} 56...
Kd6 {[%clk 0:00:42.7]} 57. Bf5 {[%clk 0:00:33.4]} 1-0